fUSD/lending_fUSD_20250930
["ID","MTS","AMOUNT","RATE_DAILY","PERIOD"]
[388568663,1759243875171,-435.22687348,0.00019452,2]
[388568664,1759243875180,-151.0,0.00019452,2]
[388568665,1759243875190,-151.0,0.00019452,2]
[388568666,1759243875199,-500.0,0.00019452,2]
[388568667,1759243875209,-895.74,0.00019452,2]
[388568668,1759243875219,-500.0,0.00019452,2]
[388568669,1759243875229,-859.64,0.00019452,2]
[388568670,1759243875239,-1209.61,0.00019452,2]
[388568671,1759243875250,-500.0,0.00019452,2]
[388568672,1759243875261,-1580.78,0.00019452,2]
[388568673,1759243875270,-638.79,0.00019452,2]
[388568674,1759243875280,-244.34614489,0.00019452,2]
[388568675,1759243875289,-500.0,0.00019452,2]
[388568676,1759243875299,-512.08,0.00019452,2]
[388568677,1759243875309,-500.0,0.00019452,2]
[388568678,1759243875318,-797.07,0.00019452,2]
[388568679,1759243875327,-500.0,0.00019452,2]
[388568680,1759243875337,-1013.67,0.00019452,2]
[388568681,1759243875346,-687.91,0.00019452,2]
[388568682,1759243875356,-500.0,0.00019452,2]
[388568683,1759243875365,-500.0,0.00019452,2]
[388568684,1759243875375,-151.0,0.00019452,2]
[388568685,1759243875385,-500.0,0.00019452,2]
[388568686,1759243875395,-647.37695306,0.00019452,2]
[388568687,1759243875404,-151.0,0.00019452,2]
[388568688,1759243875413,-151.0,0.00019452,2]
[388568689,1759243875423,-500.0,0.00019452,2]
[388568690,1759243875433,-500.0,0.00019452,2]
[388568691,1759243875442,-500.0,0.00019452,2]
[388568692,1759243875452,-500.0,0.00019452,2]
[388568693,1759243875461,-1193.9,0.00019452,2]
[388568694,1759243875471,-1660.39,0.00019452,2]
[388568695,1759243875480,-500.0,0.00019452,2]
[388568696,1759243875489,-500.0,0.00019452,2]
[388568697,1759243875499,-500.0,0.00019452,2]
[388568698,1759243875510,-2536.15,0.00019452,2]
[388568699,1759243875519,-500.0,0.00019452,2]
[388568700,1759243875528,-751.2,0.00019452,2]
[388568701,1759243875538,-230.93467229,0.00019452,2]
[388568702,1759243875547,-500.0,0.00019452,2]
[388568703,1759243875557,-500.0,0.00019452,2]
[388568704,1759243875566,-500.0,0.00019452,2]
[388568705,1759243875575,-500.0,0.00019452,2]
[388568706,1759243875585,-716.83,0.00019452,2]
[388568707,1759243875594,-500.0,0.00019452,2]
[388568708,1759243875603,-500.0,0.00019452,2]
[388568709,1759243875613,-500.0,0.00019452,2]
[388568710,1759243875623,-500.0,0.00019452,2]
[388568711,1759243875632,-500.0,0.00019452,2]
[388568712,1759243875642,-500.0,0.00019452,2]
[388568713,1759243875651,-538.27,0.00019452,2]
[388568714,1759243875660,-2795.95,0.00019452,2]
[388568715,1759243875669,-500.0,0.00019452,2]
[388568716,1759243875678,-500.0,0.00019452,2]
[388568717,1759243875688,-500.0,0.00019452,2]
[388568718,1759243875698,-762.14,0.00019452,2]
[388568719,1759243875708,-2494.69,0.00019452,2]
[388568720,1759243875718,-151.0,0.00019452,2]
[388568721,1759243875727,-500.0,0.00019452,2]
[388568722,1759243875737,-500.0,0.00019452,2]
[388568723,1759243875746,-151.0,0.00019452,2]
[388568724,1759243875755,-1393.62,0.00019452,2]
[388568725,1759243875766,-151.0,0.00019452,2]
[388568726,1759243875775,-766.13,0.00019452,2]
[388568727,1759243875785,-500.0,0.00019452,2]
[388568728,1759243875794,-500.0,0.00019452,2]
[388568729,1759243875804,-500.0,0.00019452,2]
[388568730,1759243875813,-151.0,0.00019452,2]
[388568731,1759243875823,-897.54,0.00019452,2]
[388568732,1759243875832,-500.0,0.00019452,2]
[388568733,1759243875842,-500.0,0.00019452,2]
[388568734,1759243875851,-151.0,0.00019452,2]
[388568735,1759243875860,-1736.91,0.00019452,2]
[388568736,1759243875870,-945.55,0.00019452,2]
[388568737,1759243875879,-819.73,0.00019452,2]
[388568738,1759243875888,-500.0,0.00019452,2]
[388568739,1759243875898,-1425.3,0.00019452,2]
[388568740,1759243875908,-500.0,0.00019452,2]
[388568741,1759243875917,-500.0,0.00019452,2]
[388568742,1759243875926,-500.0,0.00019452,2]
[388568743,1759243875936,-500.0,0.00019452,2]
[388568744,1759243875945,-500.0,0.00019452,2]
[388568745,1759243875955,-500.0,0.00019452,2]
[388568746,1759243875965,-500.0,0.00019452,2]
[388568747,1759243875975,-517.57,0.00019452,2]
[388568748,1759243875984,-500.0,0.00019452,2]
[388568749,1759243875994,-500.0,0.00019452,2]
[388568750,1759243876006,-2031.98,0.00019452,2]
[388568751,1759243876015,-500.0,0.00019452,2]
[388568752,1759243876025,-332.79165955,0.00019452,2]
[388568753,1759243876035,-500.0,0.00019452,2]
[388568754,1759243876049,-500.0,0.00019452,2]
[388568755,1759243876058,-1063.98,0.00019452,2]
[388568756,1759243876068,-500.0,0.00019452,2]
[388568757,1759243876078,-1050.1,0.00019452,2]
[388568758,1759243876088,-500.0,0.00019452,2]
[388568759,1759243876097,-500.0,0.00019452,2]
[388568760,1759243876106,-3112.15,0.00019452,2]
[388568761,1759243876115,-500.0,0.00019452,2]
[388568762,1759243876127,-500.0,0.00019452,2]
[388568763,1759243876136,-500.0,0.00019452,2]
[388568764,1759243876146,-620.12,0.00019452,2]
[388568765,1759243876155,-500.0,0.00019452,2]
[388568766,1759243876164,-500.0,0.00019452,2]
[388568767,1759243876173,-548.86,0.00019452,2]
[388568768,1759243876183,-1386.24,0.00019452,2]
[388568769,1759243876192,-575.74,0.00019452,2]
[388568770,1759243876202,-500.0,0.00019452,2]
[388568771,1759243876211,-500.0,0.00019452,2]
[388568772,1759243876221,-500.0,0.00019452,2]
[388568773,1759243876230,-500.0,0.00019452,2]
[388568774,1759243876242,-500.0,0.00019452,2]
[388568775,1759243876251,-151.0,0.00019452,2]
[388568776,1759243876262,-844.0,0.00019452,2]
[388568777,1759243876274,-500.0,0.00019452,2]
[388568778,1759243876283,-500.0,0.00019452,2]
[388568779,1759243876292,-500.0,0.00019452,2]
[388568780,1759243876302,-662.66,0.00019452,2]
[388568781,1759243876311,-500.0,0.00019452,2]
[388568782,1759243876320,-538.01,0.00019452,2]
[388568783,1759243876330,-500.0,0.00019452,2]
[388568784,1759243876340,-888.71,0.00019452,2]
[388568785,1759243876350,-1084.87,0.00019452,2]
[388568786,1759243876359,-858.86,0.00019452,2]
[388568787,1759243876369,-500.0,0.00019452,2]
[388568788,1759243876378,-500.0,0.00019452,2]
[388568789,1759243876387,-500.0,0.00019452,2]
[388568790,1759243876397,-181.43091277,0.00019452,2]
[388568791,1759243876406,-1407.81,0.00019452,2]
[388568792,1759243876415,-500.0,0.00019452,2]
[388568793,1759243876424,-830.02,0.00019452,2]
[388568794,1759243876433,-221.28591943,0.00019452,2]
[388568795,1759243876443,-500.0,0.00019452,2]
[388568796,1759243876455,-500.0,0.00019452,2]
[388568797,1759243876465,-500.0,0.00019452,2]
[388568798,1759243876475,-500.0,0.00019452,2]
[388568799,1759243876485,-784.29,0.00019452,2]
[388568800,1759243876495,-500.0,0.00019452,2]
[388568801,1759243876506,-500.0,0.00019452,2]
[388568802,1759243876516,-500.0,0.00019452,2]
[388568803,1759243876526,-500.0,0.00019452,2]
[388568804,1759243876535,-500.0,0.00019452,2]
[388568805,1759243876545,-500.0,0.00019452,2]
[388568806,1759243876554,-606.45,0.00019452,2]
[388568807,1759243876564,-500.0,0.00019452,2]
[388568809,1759243876574,-500.0,0.00019452,2]
[388568810,1759243876583,-781.28,0.00019452,2]
[388568811,1759243876593,-1632.14,0.00019452,2]
[388568812,1759243876602,-500.0,0.00019452,2]
[388568813,1759243876612,-500.0,0.00019452,2]
[388568814,1759243876622,-602.3095886,0.00019452,2]
[388568815,1759243876631,-500.0,0.00019452,2]
[388568816,1759243876640,-1546.9,0.00019452,2]
[388568817,1759243876652,-500.0,0.00019452,2]
[388568818,1759243876661,-257.59452018,0.00019452,2]
[388568819,1759243876670,-500.0,0.00019452,2]
[388568820,1759243876679,-500.0,0.00019452,2]
[388568821,1759243876689,-500.0,0.00019452,2]
[388568822,1759243876698,-1277.63,0.00019452,2]
[388568823,1759243876708,-500.0,0.00019452,2]
[388568824,1759243876717,-500.0,0.00019452,2]
[388568825,1759243876727,-500.0,0.00019452,2]
[388568826,1759243876737,-500.0,0.00019452,2]
[388568827,1759243876746,-3256.72,0.00019452,2]
[388568828,1759243876756,-500.0,0.00019452,2]
[388568829,1759243876766,-1956.66,0.00019452,2]
[388568830,1759243876776,-1850.29,0.00019452,2]
[388568831,1759243876785,-341.01204439,0.00019452,2]
[388568832,1759243876794,-154.984812,0.00019452,2]
[388568833,1759243876804,-500.0,0.00019452,2]
[388568834,1759243876814,-500.0,0.00019452,2]
[388568835,1759243876823,-500.0,0.00019452,2]
[388568836,1759243876833,-2648.22,0.00019452,2]
[388568837,1759243876842,-151.0,0.00019452,2]
[388568838,1759243876852,-500.0,0.00019452,2]
[388568839,1759243876862,-151.0,0.00019452,2]
[388568840,1759243876872,-500.0,0.00019452,2]
[388568841,1759243876882,-500.0,0.00019452,2]
[388568842,1759243876892,-500.0,0.00019452,2]
[388568843,1759243876902,-500.0,0.00019452,2]
[388568844,1759243876911,-500.0,0.00019452,2]
[388568845,1759243876920,-151.0,0.00019452,2]
[388568846,1759243876930,-500.0,0.00019452,2]
[388568847,1759243876941,-871.77,0.00019452,2]
[388568848,1759243876950,-500.0,0.00019452,2]
[388568849,1759243876960,-906.24,0.00019452,2]
[388568850,1759243876969,-500.0,0.00019452,2]
[388568851,1759243876979,-500.0,0.00019452,2]
[388568852,1759243876988,-2592.08,0.00019452,2]
[388568853,1759243876997,-1643.07,0.00019452,2]
[388568854,1759243877008,-500.0,0.00019452,2]
[388568855,1759243877017,-796.84,0.00019452,2]
[388568856,1759243877027,-500.0,0.00019452,2]
[388568857,1759243877037,-500.0,0.00019452,2]
[388568858,1759243877049,-599.93,0.00019452,2]
[388568859,1759243877059,-500.0,0.00019452,2]
[388568860,1759243877068,-645.06,0.00019452,2]
[388568861,1759243877077,-573.86,0.00019452,2]
[388568862,1759243877087,-500.0,0.00019452,2]
[388568863,1759243877097,-500.0,0.00019452,2]
[388568864,1759243877108,-500.0,0.00019452,2]
[388568865,1759243877119,-500.0,0.00019452,2]
[388568866,1759243877130,-500.0,0.00019452,2]
[388568867,1759243877139,-517.76,0.00019452,2]
[388568868,1759243877150,-500.0,0.00019452,2]
[388568869,1759243877161,-500.0,0.00019452,2]
[388568870,1759243877171,-2674.6,0.00019452,2]
[388568871,1759243877180,-500.0,0.00019452,2]
[388568872,1759243877191,-500.0,0.00019452,2]
[388568873,1759243877202,-500.0,0.00019452,2]
[388568874,1759243877212,-500.0,0.00019452,2]
[388568875,1759243877222,-1654.09,0.00019452,2]
[388568876,1759243877231,-1482.77,0.00019452,2]
[388568877,1759243877241,-500.0,0.00019452,2]
[388568878,1759243877251,-500.0,0.00019452,2]
[388568879,1759243877264,-500.0,0.00019452,2]
[388568880,1759243877274,-548.22,0.00019452,2]
[388568881,1759243877283,-1091.82,0.00019452,2]
[388568882,1759243877292,-500.0,0.00019452,2]
[388568883,1759243877301,-500.0,0.00019452,2]
[388568884,1759243877310,-500.0,0.00019452,2]
[388568885,1759243877319,-647.51,0.00019452,2]
[388568886,1759243877328,-500.0,0.00019452,2]
[388568887,1759243877337,-500.0,0.00019452,2]
[388568888,1759243877346,-1006.6,0.00019452,2]
[388568889,1759243877356,-151.0,0.00019452,2]
[388568890,1759243877367,-1363.1,0.00019452,2]
[388568891,1759243877377,-500.0,0.00019452,2]
[388568892,1759243877386,-500.0,0.00019452,2]
[388568893,1759243877395,-500.0,0.00019452,2]
[388568894,1759243877405,-500.0,0.00019452,2]
[388568895,1759243877413,-500.0,0.00019452,2]
[388568896,1759243877422,-500.0,0.00019452,2]
[388568897,1759243877431,-500.0,0.00019452,2]
[388568898,1759243877440,-500.0,0.00019452,2]
[388568899,1759243877449,-500.0,0.00019452,2]
[388568900,1759243877459,-500.0,0.00019452,2]
[388568901,1759243877467,-1429.66,0.00019452,2]
[388568902,1759243877477,-620.09,0.00019452,2]
[388568903,1759243877486,-151.0,0.00019452,2]
[388568904,1759243877495,-151.0,0.00019452,2]
[388568905,1759243877504,-500.0,0.00019452,2]
[388568906,1759243877514,-500.0,0.00019452,2]
[388568907,1759243877524,-555.31,0.00019452,2]
[388568908,1759243877533,-500.0,0.00019452,2]
[388568909,1759243877543,-500.0,0.00019452,2]
[388568910,1759243877552,-2391.54,0.00019452,2]
[388568911,1759243877562,-151.0,0.00019452,2]
[388568912,1759243877572,-151.0,0.00019452,2]
[388568913,1759243877582,-677.04,0.00019452,2]
[388568914,1759243877593,-1407.34,0.00019452,2]
[388568915,1759243877602,-500.0,0.00019452,2]
[388568916,1759243877612,-739.07,0.00019452,2]
[388568917,1759243877622,-500.0,0.00019452,2]
[388568918,1759243877632,-2005.31,0.00019452,2]
[388568919,1759243877641,-519.38,0.00019452,2]
[388568920,1759243877651,-500.0,0.00019452,2]
[388568921,1759243877661,-912.82,0.00019452,2]
[388568922,1759243877670,-2509.91,0.00019452,2]
[388568923,1759243877680,-500.0,0.00019452,2]
[388568924,1759243877689,-984.15,0.00019452,2]
[388568925,1759243877699,-500.0,0.00019452,2]
[388568926,1759243877708,-500.0,0.00019452,2]
[388568927,1759243877718,-151.0,0.00019452,2]
[388568928,1759243877727,-500.0,0.00019452,2]
[388568929,1759243877736,-500.0,0.00019452,2]
[388568930,1759243877746,-500.0,0.00019452,2]
[388568931,1759243877755,-500.0,0.00019452,2]
[388568932,1759243877766,-1642.32,0.00019452,2]
[388568933,1759243877776,-500.0,0.00019452,2]
[388568934,1759243877785,-500.0,0.00019452,2]
[388568935,1759243877795,-500.0,0.00019452,2]
[388568936,1759243877805,-500.0,0.00019452,2]
[388568937,1759243877814,-500.0,0.00019452,2]
[388568938,1759243877824,-1352.36,0.00019452,2]
[388568939,1759243877835,-1715.07,0.00019452,2]
[388568940,1759243877843,-332.19685212,0.00019452,2]
[388568941,1759243877853,-500.0,0.00019452,2]
[388568942,1759243877862,-500.0,0.00019452,2]
[388568943,1759243877872,-500.0,0.00019452,2]
[388568944,1759243877882,-500.0,0.00019452,2]
[388568945,1759243877891,-500.0,0.00019452,2]
[388568946,1759243877901,-500.0,0.00019452,2]
[388568947,1759243877911,-696.76,0.00019452,2]
[388568948,1759243877921,-500.0,0.00019452,2]
[388568949,1759243877931,-500.0,0.00019452,2]
[388568950,1759243877939,-934.85,0.00019452,2]
[388568951,1759243877949,-500.0,0.00019452,2]
[388568952,1759243877958,-500.0,0.00019452,2]
[388568953,1759243877967,-500.0,0.00019452,2]
[388568954,1759243877977,-1633.53,0.00019452,2]
[388568955,1759243877987,-1137.08,0.00019452,2]
[388568956,1759243877996,-2799.17,0.00019452,2]
[388568957,1759243878006,-792.06,0.00019452,2]
[388568958,1759243878019,-151.0,0.00019452,2]
[388568959,1759243878028,-159.996179,0.00019452,2]
[388568960,1759243878039,-151.0,0.00019452,2]
[388568961,1759243878050,-500.0,0.00019452,2]
[388568962,1759243878060,-500.0,0.00019452,2]
[388568963,1759243878069,-519.81405479,0.00019452,2]
[388568964,1759243878078,-1590.7,0.00019452,2]
[388568965,1759243878087,-1590.7,0.00019452,2]
[388568966,1759243878098,-500.0,0.00019452,2]
[388568967,1759243878107,-154.073841,0.00019452,2]
[388568968,1759243878118,-500.0,0.00019452,2]
[388568969,1759243878128,-636.3,0.00019452,2]
[388568970,1759243878139,-705.59,0.00019452,2]
[388568971,1759243878150,-900.53,0.00019452,2]
[388568972,1759243878159,-2925.57,0.00019452,2]
[388568973,1759243878169,-500.0,0.00019452,2]
[388568974,1759243878179,-151.0,0.00019452,2]
[388568975,1759243878189,-2601.54,0.00019452,2]
[388568976,1759243878198,-151.0,0.00019452,2]
[388568977,1759243878207,-500.0,0.00019452,2]
[388568978,1759243878216,-500.0,0.00019452,2]
[388568979,1759243878225,-1693.84,0.00019452,2]
[388568980,1759243878234,-500.0,0.00019452,2]
[388568981,1759243878243,-151.0,0.00019452,2]
[388568982,1759243878252,-500.0,0.00019452,2]
[388568983,1759243878264,-500.0,0.00019452,2]
[388568984,1759243878273,-500.0,0.00019452,2]
[388568985,1759243878283,-1076.9,0.00019452,2]
[388568986,1759243878292,-780.07,0.00019452,2]
[388568987,1759243878301,-500.0,0.00019452,2]
[388568988,1759243878310,-500.0,0.00019452,2]
[388568989,1759243878319,-500.0,0.00019452,2]
[388568990,1759243878328,-500.0,0.00019452,2]
[388568991,1759243878338,-1487.72,0.00019452,2]
[388568992,1759243878347,-3712.54,0.00019452,2]
[388568993,1759243878357,-1380.28,0.00019452,2]
[388568994,1759243878369,-513.58,0.00019452,2]
[388568995,1759243878378,-512.86,0.00019452,2]
[388568996,1759243878387,-941.59,0.00019452,2]
[388568997,1759243878396,-500.0,0.00019452,2]
[388568998,1759243878405,-714.53,0.00019452,2]
[388568999,1759243878415,-1392.68,0.00019452,2]
[388569000,1759243878424,-500.0,0.00019452,2]
[388569001,1759243878433,-500.0,0.00019452,2]
[388569002,1759243878443,-1238.43,0.00019452,2]
[388569003,1759243878452,-500.0,0.00019452,2]
[388569004,1759243878462,-500.0,0.00019452,2]
[388569005,1759243878471,-500.0,0.00019452,2]
[388569006,1759243878481,-840.76,0.00019452,2]
[388569007,1759243878490,-596.99,0.00019452,2]
[388569008,1759243878499,-808.21,0.00019452,2]
[388569009,1759243878510,-500.0,0.00019452,2]
[388569010,1759243878520,-500.0,0.00019452,2]
[388569011,1759243878530,-540.1,0.00019452,2]
[388569012,1759243878540,-2070.05,0.00019452,2]
[388569013,1759243878550,-500.0,0.00019452,2]
[388569014,1759243878561,-560.58,0.00019452,2]
[388569015,1759243878570,-500.0,0.00019452,2]
[388569016,1759243878580,-540.1,0.00019452,2]
[388569017,1759243878591,-500.0,0.00019452,2]
[388569018,1759243878602,-817.6,0.00019452,2]
[388569019,1759243878611,-500.0,0.00019452,2]
[388569020,1759243878620,-500.0,0.00019452,2]
[388569021,1759243878630,-500.0,0.00019452,2]
[388569022,1759243878639,-500.0,0.00019452,2]
[388569023,1759243878648,-500.0,0.00019452,2]
[388569024,1759243878657,-5355.07,0.00019452,2]
[388569025,1759243878667,-2335.08,0.00019452,2]
[388569026,1759243878676,-500.0,0.00019452,2]
[388569027,1759243878686,-500.0,0.00019452,2]
[388569028,1759243878695,-1147.67,0.00019452,2]
[388569029,1759243878704,-2902.05,0.00019452,2]
[388569030,1759243878714,-500.0,0.00019452,2]
[388569031,1759243878724,-500.0,0.00019452,2]
[388569032,1759243878733,-3505.26,0.00019452,2]
[388569033,1759243878745,-1760.32,0.00019452,2]
[388569034,1759243878754,-509.08,0.00019452,2]
[388569035,1759243878766,-3350.21,0.00019452,2]
[388569036,1759243878775,-500.0,0.00019452,2]
[388569037,1759243878785,-500.0,0.00019452,2]
[388569038,1759243878795,-2164.5,0.00019452,2]
[388569039,1759243878804,-500.0,0.00019452,2]
[388569040,1759243878814,-621.6,0.00019452,2]
[388569041,1759243878824,-3511.46,0.00019452,2]
[388569042,1759243878833,-1195.98,0.00019452,2]
[388569043,1759243878843,-3353.46,0.00019452,2]
[388569044,1759243878852,-500.0,0.00019452,2]
[388569045,1759243878862,-1599.6,0.00019452,2]
[388569046,1759243878872,-500.0,0.00019452,2]
[388569047,1759243878882,-1240.5,0.00019452,2]
[388569048,1759243879019,-500.0,0.00019452,2]
[388569049,1759243879041,-5540.87,0.00019452,2]
[388569050,1759243879051,-500.0,0.00019452,2]
[388569051,1759243879061,-805.73,0.00019452,2]
[388569052,1759243879071,-155.785656,0.00019452,2]
[388569053,1759243879081,-500.0,0.00019452,2]
[388569054,1759243879091,-2715.19,0.00019452,2]
[388569055,1759243879102,-1797.12,0.00019452,2]
[388569056,1759243879114,-155.785656,0.00019452,2]
[388569057,1759243879129,-6610.98,0.00019452,2]
[388569058,1759243879138,-500.0,0.00019452,2]
[388569059,1759243879148,-439.76087734,0.00019452,2]
[388569060,1759243879158,-705.44,0.00019452,2]
[388569061,1759243879168,-155.785656,0.00019452,2]
[388569062,1759243879178,-853.5,0.00019452,2]
[388569063,1759243879189,-500.0,0.00019452,2]
[388569064,1759243879199,-155.785656,0.00019452,2]
[388569065,1759243879209,-550.77,0.00019452,2]
[388569066,1759243879218,-500.0,0.00019452,2]
[388569067,1759243879229,-500.0,0.00019452,2]
[388569068,1759243879239,-500.0,0.00019452,2]
[388569069,1759243879249,-5110.4,0.00019452,2]
[388569070,1759243879258,-500.0,0.00019452,2]
[388569071,1759243879269,-500.0,0.00019452,2]
[388569072,1759243879279,-500.0,0.00019452,2]
[388569073,1759243879288,-1675.3,0.00019452,2]
[388569074,1759243879298,-500.0,0.00019452,2]
[388569075,1759243879307,-500.0,0.00019452,2]
[388569076,1759243879316,-500.0,0.00019452,2]
[388569077,1759243879325,-1575.48,0.00019452,2]
[388569078,1759243879335,-500.0,0.00019452,2]
[388569079,1759243879345,-500.0,0.00019452,2]
[388569080,1759243879353,-1581.9,0.00019452,2]
[388569081,1759243879363,-612.19,0.00019452,2]
[388569082,1759243879372,-2157.08,0.00019452,2]
[388569083,1759243879382,-4283.19,0.00019452,2]
[388569084,1759243879392,-1098.61,0.00019452,2]
[388569085,1759243879402,-500.0,0.00019452,2]
[388569086,1759243879411,-500.0,0.00019452,2]
[388569087,1759243879421,-586.61,0.00019452,2]
[388569088,1759243879431,-500.0,0.00019452,2]
[388569089,1759243879441,-2415.06,0.00019452,2]
[388569090,1759243879451,-500.0,0.00019452,2]
[388569091,1759243879460,-5438.8,0.00019452,2]
[388569092,1759243879470,-1045.49,0.00019452,2]
[388569093,1759243879480,-500.0,0.00019452,2]
[388569094,1759243879490,-500.0,0.00019452,2]
[388569095,1759243879499,-957.45,0.00019452,2]
[388569096,1759243879511,-1286.78,0.00019452,2]
[388569097,1759243879520,-571.65,0.00019452,2]
[388569098,1759243879530,-1218.74,0.00019452,2]
[388569099,1759243879540,-500.0,0.00019452,2]
[388569100,1759243879549,-2166.0,0.00019452,2]
[388569101,1759243879559,-5083.05,0.00019452,2]
[388569102,1759243879568,-4808.33,0.00019452,2]
[388569103,1759243879579,-2880.85,0.00019452,2]
[388569104,1759243879588,-883.74,0.00019452,2]
[388569105,1759243879598,-500.0,0.00019452,2]
[388569106,1759243879608,-500.0,0.00019452,2]
[388569107,1759243879617,-1373.2,0.00019452,2]
[388569108,1759243879626,-500.0,0.00019452,2]
[388569109,1759243879636,-500.0,0.00019452,2]
[388569110,1759243879647,-500.0,0.00019452,2]
[388569111,1759243879657,-500.0,0.00019452,2]
[388569112,1759243879668,-500.0,0.00019452,2]
[388569113,1759243879678,-806.47,0.00019452,2]
[388569114,1759243879689,-549.1,0.00019452,2]
[388569115,1759243879699,-1566.99,0.00019452,2]
[388569116,1759243879709,-500.0,0.00019452,2]
[388569117,1759243879719,-500.0,0.00019452,2]
[388569118,1759243879728,-500.0,0.00019452,2]
[388569119,1759243879739,-5111.26,0.00019452,2]
[388569120,1759243879748,-636.06,0.00019452,2]
[388569121,1759243879759,-500.0,0.00019452,2]
[388569122,1759243879770,-500.0,0.00019452,2]
[388569123,1759243879780,-598.08,0.00019452,2]
[388569124,1759243879790,-500.0,0.00019452,2]
[388569125,1759243879800,-2718.85,0.00019452,2]
[388569126,1759243879810,-151.0,0.00019452,2]
[388569127,1759243879820,-636.1,0.00019452,2]
[388569128,1759243879831,-3621.53,0.00019452,2]
[388569129,1759243879841,-2533.68,0.00019452,2]
[388569130,1759243879851,-1725.05,0.00019452,2]
[388569131,1759243879862,-3013.89,0.00019452,2]
[388569132,1759243879873,-804.58,0.00019452,2]
[388569133,1759243879883,-500.0,0.00019452,2]
[388569134,1759243879893,-500.0,0.00019452,2]
[388569135,1759243879902,-857.920883,0.00019452,2]
[388569136,1759243879912,-500.0,0.00019452,2]
[388569137,1759243879922,-500.0,0.00019452,2]
[388569138,1759243879932,-1914.69,0.00019452,2]
[388569139,1759243879942,-857.920883,0.00019452,2]
[388569140,1759243879951,-500.0,0.00019452,2]
[388569141,1759243879960,-152.135929,0.00019452,2]
[388569142,1759243879971,-500.0,0.00019452,2]
[388569143,1759243879980,-500.0,0.00019452,2]
[388569144,1759243879989,-152.135929,0.00019452,2]
[388569145,1759243879999,-857.920883,0.00019452,2]
[388569146,1759243880009,-1896.37,0.00019452,2]
[388569147,1759243880019,-859.8,0.00019452,2]
[388569148,1759243880029,-500.0,0.00019452,2]
[388569149,1759243880042,-206.530796,0.00019452,2]
[388569150,1759243880053,-1627.92,0.00019452,2]
[388569151,1759243880062,-857.920883,0.00019452,2]
[388569152,1759243880072,-4288.38,0.00019452,2]
[388569153,1759243880082,-152.135929,0.00019452,2]
[388569154,1759243880092,-500.0,0.00019452,2]
[388569155,1759243880102,-500.0,0.00019452,2]
[388569156,1759243880112,-500.0,0.00019452,2]
[388569157,1759243880122,-152.135929,0.00019452,2]
[388569158,1759243880132,-500.0,0.00019452,2]
[388569159,1759243880141,-4489.31,0.00019452,2]
[388569160,1759243880151,-206.530796,0.00019452,2]
[388569161,1759243880161,-2042.97,0.00019452,2]
[388569162,1759243880172,-206.530796,0.00019452,2]
[388569163,1759243880182,-151.0,0.00019452,2]